bitfinex/quotes_SOLUSD_20230113
["timestamp","ask_amount","ask_price","bid_price","bid_amount"]
[1673641135617,43.76,17.14,17.121,17.0]
[1673641135845,20.0,17.139,17.121,17.0]
[1673641136170,20.0,17.139,17.122,20.0]
[1673641136476,20.0,17.142,17.122,20.0]
[1673641136696,63.76,17.142,17.12,43.41]
[1673641137090,17.0,17.141,17.12,43.41]
[1673641137294,20.0,17.14,17.12,43.41]
[1673641138158,43.76,17.142,17.12,43.41]
[1673641138371,43.75,17.145,17.122,20.0]
[1673641138565,161.3761,17.148,17.123,20.0]
[1673641139505,20.0,17.147,17.124,17.0]
[1673641139715,20.0,17.147,17.125,20.0]
[1673641139949,43.75,17.146,17.125,20.0]
[1673641140345,43.75,17.146,17.122,20.0]
[1673641140559,17.0,17.145,17.122,20.0]
[1673641140786,17.0,17.145,17.123,17.0]
[1673641140981,43.75,17.144,17.124,20.0]
[1673641141191,17.0,17.143,17.124,20.0]
[1673641141418,17.0,17.143,17.125,17.0]
[1673641141732,17.0,17.143,17.121,20.0]
[1673641141733,43.76,17.142,17.126,20.0]
[1673641141939,17.0,17.141,17.126,20.0]
[1673641142155,17.0,17.141,17.12,43.41]
[1673641142362,63.76,17.14,17.12,43.41]
[1673641142554,17.0,17.139,17.12,43.41]
[1673641142763,20.0,17.138,17.12,43.41]
[1673641142974,17.0,17.137,17.12,43.41]
[1673641143735,43.77,17.136,17.12,43.41]
[1673641143949,17.0,17.135,17.11,20.0]
[1673641144363,17.0,17.135,17.119,20.0]
[1673641144561,17.0,17.136,17.119,20.0]
[1673641144983,43.77,17.135,17.119,20.0]
[1673641145203,43.77,17.135,17.12,17.0]
[1673641146157,43.77,17.137,17.12,17.0]
[1673641146786,43.77,17.137,17.11,20.0]
[1673641147000,43.77,17.137,17.121,17.0]
[1673641147192,43.77,17.137,17.11,20.0]
[1673641147405,43.77,17.137,17.12,20.0]
[1673641147715,43.77,17.137,17.11,20.0]
[1673641147924,43.77,17.137,17.119,20.0]
[1673641148151,17.0,17.136,17.11,20.0]
[1673641148377,215.3,17.136,17.11,63.02]
[1673641148569,43.77,17.135,17.11,63.02]
[1673641148767,37.0,17.134,17.11,63.02]
[1673641149200,43.78,17.133,17.11,63.02]
[1673641149520,37.0,17.132,17.11,43.02]
[1673641149711,20.0,17.131,17.11,43.02]
[1673641149926,17.0,17.13,17.11,43.02]
[1673641150147,20.0,17.129,17.11,43.02]
[1673641150353,17.0,17.128,17.11,43.02]
[1673641150886,43.79,17.127,17.11,43.02]
[1673641151716,20.0,17.129,17.11,43.02]
[1673641151930,20.0,17.135,17.111,37.0]
[1673641152144,46.9691928,17.134,17.111,17.0]
[1673641152341,20.0,17.133,17.111,17.0]
[1673641152556,49.9691928,17.133,17.111,17.0]
[1673641152763,20.0,17.131,17.11,43.02]
[1673641152977,20.0,17.13,17.11,43.02]
[1673641153190,17.0,17.129,17.11,43.02]
[1673641153397,20.0,17.128,17.11,43.02]
[1673641153609,17.0,17.127,17.11,43.02]
[1673641153822,17.0,17.127,17.106,119.4005]
[1673641154027,73.7691928,17.126,17.106,119.4005]
[1673641154234,17.0,17.125,17.106,119.4005]
[1673641154656,43.8,17.124,17.106,119.4005]
[1673641155201,17.0,17.123,17.106,119.4005]
[1673641155818,43.81,17.122,17.106,119.4005]
[1673641156233,43.81,17.122,17.11,20.0]
[1673641156447,43.81,17.122,17.106,119.4005]
[1673641156773,43.8,17.125,17.11,63.41]
[1673641156975,43.8,17.126,17.11,63.41]
[1673641157188,118.6643,17.127,17.11,63.41]
[1673641157928,118.6643,17.127,17.111,17.0]
[1673641158454,74.38628192,17.135,17.111,17.0]
[1673641158455,43.78,17.134,17.12,43.02]
[1673641158980,63.77,17.135,17.12,43.02]
[1673641159295,43.78,17.133,17.12,43.02]
[1673641159511,43.78,17.134,17.12,43.02]
[1673641159698,43.77,17.135,17.121,17.0]
[1673641159908,43.77,17.135,17.12,43.02]
[1673641160133,63.77,17.135,17.12,43.02]
[1673641160344,43.77,17.135,17.12,43.02]
[1673641160763,43.77,17.135,17.121,17.0]
[1673641161501,43.77,17.135,17.12,43.02]
[1673641161701,40.0,17.134,17.11,43.02]
[1673641162127,73.7491928,17.133,17.11,43.02]
[1673641162444,37.0,17.132,17.11,43.02]
[1673641162653,20.0,17.131,17.11,43.02]
[1673641162868,37.0,17.13,17.11,43.02]
[1673641163091,147.2879,17.13,17.11,43.02]
[1673641163393,43.79,17.129,17.11,43.02]
[1673641163579,20.0,17.128,17.11,43.02]
[1673641164027,43.79,17.127,17.11,43.02]
[1673641164215,20.0,17.128,17.111,17.0]
[1673641164420,20.0,17.128,17.112,20.0]
[1673641164654,20.0,17.128,17.113,17.0]
[1673641165265,20.0,17.128,17.112,17.0]
[1673641165690,20.0,17.128,17.11,43.02]
[1673641165917,20.0,17.128,17.111,17.0]
[1673641166546,40.0,17.128,17.11,43.02]
[1673641166752,43.79,17.127,17.11,43.02]
[1673641167274,43.79,17.127,17.111,20.0]
[1673641167484,43.79,17.127,17.11,43.02]
[1673641167906,43.79,17.127,17.111,17.0]
[1673641168746,43.79,17.127,17.11,43.02]
[1673641170103,43.79,17.127,17.111,17.0]
[1673641172010,17.0,17.126,17.11,43.02]
[1673641172435,43.8,17.125,17.11,43.02]
[1673641173180,43.79,17.127,17.11,43.02]
[1673641173389,43.79,17.127,17.111,17.0]
[1673641173909,17.0,17.126,17.111,17.0]
[1673641174097,43.79,17.127,17.111,17.0]
[1673641174941,20.0,17.128,17.111,17.0]
[1673641175574,20.0,17.128,17.112,20.0]
[1673641175784,20.0,17.128,17.113,17.0]
[1673641176008,20.0,17.129,17.11,43.02]
[1673641176194,20.0,17.129,17.111,17.0]
[1673641176410,20.0,17.129,17.112,20.0]
[1673641176837,20.0,17.129,17.113,17.0]
[1673641177365,63.79,17.129,17.111,20.0]
[1673641177581,20.0,17.129,17.111,20.0]
[1673641177908,20.0,17.129,17.112,17.0]
[1673641180717,43.78,17.133,17.12,43.41]
[1673641180929,275.1181,17.136,17.121,19.70276347]
[1673641181144,275.1181,17.136,17.121,17.0]
[1673641181145,231.3481,17.136,17.121,17.0]
[1673641182084,43.76,17.141,17.122,23.57400808]
[1673641182298,136.5122,17.14,17.12,46.2]
[1673641182509,136.5122,17.14,17.123,17.0]
[1673641183361,136.5122,17.14,17.124,17.0]
[1673641184417,20.0,17.139,17.124,17.0]
[1673641184604,20.0,17.138,17.124,17.0]
[1673641185440,20.0,17.139,17.124,17.0]
[1673641186597,40.0,17.139,17.124,17.0]
[1673641186828,63.76,17.139,17.124,17.0]
[1673641187040,20.0,17.139,17.124,17.0]
[1673641187450,43.76,17.142,17.125,20.0]
[1673641187664,43.75,17.144,17.131,3.70438606]
[1673641187864,158.0267,17.147,17.131,20.70438606]
[1673641188280,43.74,17.147,17.131,20.70438606]
[1673641188494,43.73,17.152,17.131,20.70438606]
[1673641188812,43.75,17.146,17.131,20.70438606]
[1673641189034,162.7087,17.151,17.131,20.70438606]
[1673641189444,20.0,17.15,17.132,20.0]
[1673641189659,20.0,17.15,17.133,3.70438606]
[1673641189868,20.0,17.15,17.133,20.70438606]
[1673641190080,43.74,17.149,17.133,20.70438606]
[1673641190398,20.0,17.148,17.133,3.70438606]
[1673641190608,20.0,17.148,17.131,3.70438606]
[1673641190923,43.74,17.147,17.131,3.70438606]
[1673641191870,43.74,17.147,17.131,20.70438606]
[1673641192194,43.74,17.15,17.13,46.2]
[1673641192381,43.75,17.146,17.13,46.2]
[1673641192610,63.74,17.149,17.13,46.2]
[1673641192820,43.74,17.15,17.13,46.2]
[1673641193036,20.0,17.149,17.13,46.2]
[1673641193246,20.0,17.147,17.13,46.2]
[1673641193655,43.75,17.146,17.13,46.2]
[1673641194094,43.74,17.147,17.13,46.2]
[1673641194296,43.74,17.147,17.131,20.0]
[1673641194712,43.74,17.147,17.13,46.2]
[1673641195349,43.74,17.147,17.131,17.0]
[1673641196932,44.13062296,17.157,17.132,2.90756957]
[1673641196933,43.73,17.151,17.132,2.90756957]
[1673641197135,44.13062296,17.157,17.132,2.90756957]
[1673641197136,43.73,17.152,17.132,22.90756957]
[1673641197357,43.74,17.15,17.133,20.0]
[1673641197550,166.2549928,17.156,17.133,20.0]
[1673641197551,43.73,17.151,17.14,46.19]
[1673641197884,43.74,17.149,17.141,20.25817942]
[1673641198088,43.74,17.15,17.141,20.25817942]
[1673641198296,43.73,17.153,17.141,20.25817942]
[1673641198824,43.73,17.154,17.141,20.25817942]
[1673641199011,43.73,17.152,17.141,20.25817942]
[1673641199227,43.73,17.153,17.141,20.25817942]
[1673641199435,43.72,17.155,17.141,20.25817942]
[1673641199650,116.2858,17.156,17.141,20.25817942]
[1673641200707,116.2858,17.156,17.141,17.0]
[1673641200921,116.2858,17.156,17.142,2.79374476]
[1673641201332,43.72,17.155,17.142,2.79374476]
[1673641201554,43.72,17.155,17.141,17.0]
[1673641203451,43.72,17.155,17.14,46.19]
[1673641203666,43.72,17.155,17.13,46.2]
[1673641203667,20.0,17.154,17.13,46.2]
[1673641203972,40.0,17.154,17.132,22.84870592]
[1673641204299,43.73,17.153,17.132,22.84870592]
[1673641204507,20.0,17.152,17.132,22.84870592]
[1673641204715,43.73,17.153,17.14,46.3]
[1673641204911,43.73,17.154,17.141,17.0]
[1673641205122,43.72,17.155,17.141,17.0]
[1673641205342,43.73,17.153,17.141,17.0]
[1673641205552,43.72,17.155,17.141,17.0]
[1673641205757,43.73,17.152,17.132,20.0]
[1673641205971,20.0,17.151,17.132,20.0]
[1673641206181,63.73,17.151,17.13,46.3]
[1673641206389,20.0,17.151,17.13,46.3]
[1673641206593,43.74,17.15,17.13,46.3]
[1673641206811,20.0,17.149,17.13,46.3]
[1673641207218,20.0,17.149,17.132,37.0]
[1673641207548,20.0,17.15,17.132,37.0]
[1673641207763,43.74,17.15,17.132,37.0]
[1673641208080,43.73,17.153,17.14,46.2]
[1673641208282,43.72,17.155,17.141,17.0]
[1673641209109,116.2858,17.156,17.141,17.0]
[1673641210592,43.71,17.16,17.142,20.0]
[1673641210917,20.0,17.159,17.144,2.97720124]
[1673641211313,63.71,17.16,17.145,29.9691928]
[1673641211526,63.71,17.16,17.146,19.97720124]
[1673641211752,43.71,17.16,17.146,17.0]
[1673641211962,43.7,17.163,17.15,46.2]
[1673641212170,162.492,17.167,17.151,20.46034774]
[1673641212793,20.0,17.166,17.151,20.46034774]
[1673641213208,43.7,17.165,17.151,20.46034774]
[1673641213641,43.7,17.166,17.151,50.42954054]
[1673641213968,162.492,17.167,17.151,50.42954054]
[1673641214278,43.69,17.168,17.151,50.42954054]
[1673641214469,43.69,17.169,17.151,50.42954054]
[1673641214674,43.69,17.17,17.151,50.42954054]
[1673641214888,43.69,17.168,17.151,50.42954054]
[1673641215111,43.69,17.169,17.151,50.42954054]
[1673641215318,43.69,17.17,17.151,50.42954054]
[1673641215545,20.0,17.169,17.151,50.42954054]
[1673641216176,20.0,17.17,17.151,50.42954054]
[1673641216361,20.0,17.17,17.151,3.46034774]
[1673641216569,20.0,17.168,17.151,3.46034774]
[1673641217097,43.69,17.167,17.15,46.2]
[1673641217628,43.69,17.169,17.151,2.95182836]
[1673641217845,20.0,17.168,17.151,2.95182836]
[1673641218278,20.0,17.168,17.152,29.9691928]
[1673641218484,20.0,17.169,17.153,2.95182836]
[1673641218676,20.0,17.169,17.153,19.95182836]
[1673641219094,40.0,17.169,17.153,2.95182836]
[1673641219310,43.69,17.168,17.151,2.95182836]
[1673641219646,43.69,17.168,17.15,46.2]
[1673641220067,20.0,17.167,17.15,46.2]
[1673641220593,20.0,17.165,17.145,113.019]
[1673641220901,46.26,17.16,17.14,46.2]
[1673641221115,57.0,17.159,17.14,46.2]
[1673641221327,100.71,17.159,17.14,46.2]
[1673641221539,130.6791928,17.159,17.14,46.2]
[1673641222161,29.9691928,17.158,17.14,46.2]
[1673641222685,43.72,17.157,17.14,46.2]
[1673641223516,20.0,17.156,17.14,46.2]
[1673641223850,20.0,17.156,17.13,46.3]
[1673641224042,175.633,17.155,17.13,46.3]
[1673641224374,20.0,17.154,17.132,29.9691928]
[1673641224690,20.0,17.153,17.132,29.9691928]
[1673641224900,63.73,17.153,17.132,29.9691928]
[1673641225615,43.73,17.153,17.133,20.0]
[1673641225829,111.913,17.155,17.133,20.0]
[1673641225830,155.633,17.155,17.14,46.2]
[1673641226038,111.913,17.155,17.141,17.0]
[1673641226791,63.73,17.154,17.13,46.36]
[1673641226988,20.0,17.153,17.131,20.0]
[1673641227316,20.0,17.153,17.131,29.9691928]
[1673641227528,43.73,17.152,17.132,29.9691928]
[1673641227741,20.0,17.151,17.132,29.9691928]
[1673641228149,43.74,17.15,17.13,46.36]
[1673641228350,20.0,17.149,17.131,29.9691928]
[1673641228560,20.0,17.149,17.132,20.0]
[1673641229108,43.74,17.148,17.132,49.9691928]
[1673641229310,43.74,17.148,17.133,17.0]
[1673641229523,20.0,17.15,17.133,17.0]
[1673641229732,43.73,17.154,17.134,29.9691928]
[1673641229733,20.0,17.153,17.134,29.9691928]
[1673641229947,20.0,17.153,17.135,17.0]
[1673641230139,43.73,17.152,17.135,17.0]
[1673641230348,20.0,17.151,17.135,17.0]
[1673641230776,43.74,17.15,17.134,29.9691928]
[1673641230994,20.0,17.149,17.13,46.36]
[1673641231315,20.0,17.149,17.13,76.3291928]
[1673641231519,43.74,17.148,17.13,76.3291928]
[1673641231923,43.74,17.148,17.131,20.0]
[1673641232158,43.74,17.148,17.132,17.0]
[1673641234036,43.74,17.148,17.13,76.3291928]
[1673641234251,43.74,17.148,17.13,46.36]
[1673641235385,43.74,17.148,17.13,76.3291928]
[1673641235828,43.74,17.148,17.131,17.0]
[1673641236758,20.0,17.147,17.131,17.0]
[1673641237172,43.75,17.146,17.131,17.0]
[1673641237936,20.0,17.149,17.131,17.0]
[1673641237937,43.74,17.148,17.131,17.0]
[1673641238126,43.75,17.145,17.131,17.0]
[1673641238341,43.74,17.148,17.131,17.0]
[1673641238541,43.75,17.144,17.131,17.0]
[1673641238751,43.74,17.148,17.131,17.0]
[1673641242446,43.74,17.148,17.121,20.0]
[1673641242447,66.9691928,17.147,17.121,20.0]
[1673641242646,20.0,17.146,17.121,20.0]
[1673641242856,37.0,17.145,17.122,29.9691928]
[1673641243068,20.0,17.144,17.122,29.9691928]
[1673641243279,20.0,17.143,17.122,29.9691928]
[1673641243691,43.76,17.142,17.122,29.9691928]
[1673641243907,20.0,17.141,17.122,29.9691928]
[1673641244238,20.0,17.141,17.123,17.0]
[1673641244438,43.76,17.14,17.123,17.0]
[1673641244648,20.0,17.139,17.123,17.0]
[1673641245059,43.77,17.138,17.122,17.0]
[1673641245270,43.77,17.138,17.122,46.9691928]
[1673641246643,43.77,17.138,17.123,20.0]
[1673641246867,43.77,17.138,17.124,17.0]
[1673641247602,128.8976,17.139,17.125,49.9691928]
[1673641247793,128.8976,17.139,17.126,17.0]
[1673641248009,43.75,17.144,17.13,46.36]
[1673641248220,66.26,17.16,17.131,20.0]
[1673641248221,43.74,17.147,17.131,20.0]
[1673641248542,119.612,17.149,17.132,17.0]
[1673641248769,63.74,17.148,17.132,17.0]
[1673641249368,63.74,17.148,17.132,16.5]
[1673641249593,63.74,17.148,17.13,46.36]
[1673641251591,20.0,17.147,17.13,46.36]
[1673641251815,20.0,17.147,17.131,17.0]
[1673641252127,43.75,17.146,17.131,17.0]
[1673641252532,43.75,17.146,17.13,46.36]
[1673641252746,20.0,17.145,17.13,46.36]
[1673641252976,20.0,17.145,17.127,225.0701]
[1673641253174,43.75,17.144,17.128,20.0]
[1673641253913,43.75,17.144,17.129,17.0]
[1673641255374,43.75,17.144,17.127,109.3837]
[1673641255584,20.0,17.142,17.127,109.3837]
[1673641255795,20.0,17.141,17.121,114.1599]
[1673641256010,173.3994,17.141,17.121,114.1599]
[1673641256230,20.0,17.14,17.121,114.1599]
[1673641256549,20.0,17.139,17.121,114.1599]
[1673641256967,20.0,17.139,17.121,144.1290928]
[1673641257170,20.0,17.139,17.121,114.1599]
[1673641257703,40.0,17.14,17.121,114.1599]
[1673641257891,20.0,17.14,17.122,17.0]
[1673641258104,20.0,17.14,17.122,37.0]
[1673641258855,20.0,17.14,17.122,17.0]
[1673641259594,20.0,17.14,17.122,37.0]
[1673641260104,20.0,17.14,17.122,66.9691928]
[1673641261358,43.75,17.144,17.123,20.0]
[1673641261568,63.75,17.145,17.124,37.0]
[1673641261799,43.75,17.143,17.124,66.9691928]
[1673641262005,43.75,17.144,17.124,66.9691928]
[1673641262327,43.75,17.144,17.13,30.66]
[1673641262536,43.75,17.145,17.131,17.0]
[1673641262948,43.75,17.145,17.121,114.1599]
[1673641263163,59.9383856,17.144,17.121,114.1599]
[1673641263352,20.0,17.143,17.121,114.1599]
[1673641263568,30.74,17.14,17.121,114.1599]
[1673641263881,49.9691928,17.139,17.121,114.1599]
[1673641264092,93.7291928,17.139,17.121,114.1599]
[1673641264529,20.0,17.138,17.121,114.1599]
[1673641264741,20.0,17.138,17.122,17.0]
[1673641264930,43.77,17.137,17.122,17.0]
[1673641265487,20.0,17.136,17.122,17.0]
[1673641265798,20.0,17.136,17.111,20.0]
[1673641266007,43.77,17.135,17.119,20.0]
[1673641267044,43.77,17.135,17.12,17.0]
[1673641267376,43.77,17.135,17.119,20.0]
[1673641267563,20.0,17.134,17.119,20.0]
[1673641267984,43.78,17.133,17.119,20.0]
[1673641269143,43.77,17.135,17.119,20.0]
[1673641269356,43.78,17.132,17.119,20.0]
[1673641269570,43.77,17.135,17.119,20.0]
[1673641270101,20.0,17.134,17.12,17.0]
[1673641270313,20.0,17.134,17.112,119.1089]
[1673641270508,20.0,17.132,17.112,119.1089]
[1673641270725,20.0,17.131,17.112,119.1089]
[1673641270940,63.78,17.131,17.112,119.1089]
[1673641271766,63.78,17.131,17.113,17.0]
[1673641273055,20.0,17.13,17.113,17.0]
[1673641273269,20.0,17.129,17.112,119.1089]
[1673641273576,20.0,17.128,17.112,119.1089]
[1673641273991,43.8,17.127,17.112,119.1089]
[1673641274831,43.79,17.128,17.112,119.1089]
[1673641275765,43.79,17.128,17.113,17.0]
[1673641275977,43.78,17.133,17.113,17.0]
[1673641276192,43.78,17.133,17.114,20.0]
[1673641276402,43.77,17.135,17.116,20.0]
[1673641276616,43.77,17.135,17.117,37.0]
[1673641276815,43.77,17.135,17.12,30.68]
[1673641277154,43.77,17.135,17.121,17.0]
[1673641277559,117.2627,17.136,17.121,17.0]
[1673641279877,20.0,17.135,17.121,17.0]
[1673641280107,117.2627,17.136,17.121,17.0]
[1673641282506,20.0,17.135,17.121,17.0]
[1673641282703,63.77,17.135,17.12,30.68]
[1673641283125,43.77,17.135,17.12,30.68]
[1673641283864,43.77,17.135,17.121,17.0]
[1673641284189,117.2627,17.136,17.121,17.0]
[1673641285337,20.0,17.135,17.12,30.68]
[1673641285663,63.77,17.135,17.117,20.0]
[1673641285873,66.9691928,17.134,17.11,30.96]
[1673641286076,49.9691928,17.134,17.11,30.96]
[1673641286392,43.78,17.133,17.113,20.0]
[1673641286604,20.0,17.132,17.113,20.0]
[1673641287009,43.79,17.131,17.113,57.96139299]
[1673641287338,20.0,17.13,17.114,17.0]
[1673641287531,20.0,17.13,17.113,37.96139299]
[1673641287742,43.79,17.129,17.11,30.96]
[1673641287951,20.0,17.128,17.11,30.96]
[1673641288396,43.8,17.127,17.11,30.96]
[1673641289347,20.0,17.126,17.11,30.96]
[1673641289649,43.8,17.127,17.11,30.96]
[1673641290495,43.8,17.127,17.113,17.0]
[1673641291018,43.8,17.127,17.11,30.96]
[1673641292177,20.0,17.128,17.111,20.0]
[1673641292379,20.0,17.129,17.111,20.0]
[1673641292698,20.0,17.129,17.111,57.96139299]
[1673641293104,40.0,17.132,17.111,57.96139299]
[1673641293313,40.0,17.132,17.112,17.0]
[1673641293522,43.79,17.131,17.112,17.0]
[1673641293748,20.0,17.13,17.112,17.0]
[1673641294272,20.0,17.13,17.113,57.96139299]
[1673641294273,43.79,17.129,17.113,57.96139299]
[1673641294483,20.0,17.128,17.114,17.0]
[1673641294671,43.79,17.128,17.114,17.0]
[1673641294880,20.0,17.13,17.114,17.0]
[1673641294881,43.79,17.129,17.114,17.0]
[1673641295104,43.8,17.127,17.114,17.0]
[1673641295310,43.79,17.129,17.114,17.0]
[1673641295524,20.0,17.13,17.114,17.0]
[1673641295734,20.0,17.131,17.114,17.0]
[1673641295946,43.79,17.131,17.114,17.0]
[1673641296164,20.0,17.13,17.114,17.0]
[1673641296378,63.79,17.13,17.114,17.0]
[1673641296573,43.78,17.133,17.12,30.68]
[1673641296899,43.77,17.138,17.121,17.0]
[1673641297423,43.76,17.139,17.121,17.0]
[1673641297620,29.9691928,17.142,17.121,17.0]
[1673641297621,43.77,17.137,17.121,17.0]
[1673641297833,43.77,17.135,17.121,17.0]
[1673641298248,20.0,17.134,17.121,17.0]
[1673641299319,20.0,17.134,17.12,30.68]
[1673641299631,20.0,17.134,17.118,110.2929]
[1673641300253,43.78,17.133,17.11,30.96]
[1673641300572,20.0,17.132,17.111,115.0771]
[1673641300786,49.9691928,17.132,17.111,115.0771]
[1673641300999,63.79,17.131,17.111,115.0771]
[1673641301215,20.0,17.13,17.111,115.0771]
[1673641301715,40.0,17.13,17.111,115.0771]
[1673641302035,43.79,17.129,17.112,17.0]
[1673641302247,20.0,17.128,17.112,17.0]
[1673641302457,20.0,17.128,17.111,115.0771]
[1673641302679,43.8,17.127,17.111,115.0771]
[1673641303825,43.8,17.127,17.112,17.0]
[1673641304029,43.8,17.127,17.111,115.0771]
[1673641304362,43.8,17.127,17.11,30.96]
[1673641305835,133.6128,17.128,17.111,17.0]
[1673641308542,133.6128,17.128,17.11,30.96]
[1673641309385,43.8,17.127,17.11,30.96]
[1673641309600,133.6128,17.128,17.11,30.96]
[1673641310126,20.0,17.127,17.11,30.96]
[1673641310658,63.8,17.127,17.11,30.96]
[1673641311176,63.8,17.127,17.111,17.0]
[1673641311588,63.8,17.127,17.11,30.96]
[1673641313606,63.8,17.127,17.111,17.0]
[1673641314010,63.8,17.127,17.11,17.0]
[1673641315588,63.8,17.127,17.109,81.3544]
[1673641316021,43.8,17.127,17.109,81.3544]
[1673641316642,63.8,17.127,17.109,81.3544]
[1673641316855,63.8,17.127,17.11,17.0]
[1673641317389,20.0,17.126,17.11,17.0]
[1673641317810,63.8,17.125,17.105,114.2567]
[1673641318127,20.0,17.124,17.105,114.2567]
[1673641318327,20.0,17.123,17.105,114.2567]
[1673641318536,63.81,17.123,17.105,114.2567]
[1673641319071,63.81,17.123,17.106,17.0]
[1673641321906,20.0,17.122,17.106,17.0]
[1673641322120,20.0,17.121,17.106,17.0]
[1673641322431,43.81,17.121,17.106,17.0]
[1673641322631,20.0,17.12,17.106,17.0]
[1673641322839,63.81,17.12,17.106,17.0]
[1673641323051,20.0,17.12,17.106,17.0]
[1673641323260,43.82,17.119,17.106,17.0]
[1673641323470,20.0,17.12,17.11,30.68]
[1673641323684,164.63819358,17.126,17.101,62.6473839]
[1673641323903,247.58171831,17.119,17.101,62.6473839]
[1673641324102,183.76171831,17.119,17.101,62.6473839]
[1673641324309,20.0,17.129,17.11,30.96]
[1673641324517,43.8,17.125,17.11,30.96]
[1673641324730,43.8,17.127,17.102,6.74684]
[1673641324953,113.9023,17.129,17.102,6.74684]
[1673641324954,43.8,17.124,17.102,6.74684]
[1673641325159,63.8,17.126,17.102,6.74684]
[1673641325355,43.81,17.123,17.101,62.6473839]
[1673641325567,30.85,17.12,17.101,62.6473839]
[1673641325897,20.0,17.109,17.101,62.6473839]
[1673641326110,20.0,17.108,17.101,62.6473839]
[1673641326319,20.0,17.108,17.09,59.0923288]
[1673641326320,93.8091928,17.108,17.09,59.0923288]
[1673641326531,46.9691928,17.107,17.096,0.0030216]
[1673641326846,79.27,17.105,17.09,0.0053504]
[1673641327055,154.89,17.1,17.09,0.0053504]
[1673641327248,40.0,17.099,17.09,0.0053504]
[1673641327458,17.0,17.098,17.09,0.0053504]
[1673641327678,20.0,17.097,17.09,0.0053504]
[1673641327890,20.0,17.096,17.09,0.0053504]
[1673641328099,20.0,17.095,17.09,0.0053504]
[1673641328309,93.8491928,17.095,17.09,0.0053504]
[1673641328622,29.9691928,17.094,17.09,0.0053504]
[1673641328833,30.85,17.11,17.09,0.0053504]
[1673641329378,43.85,17.106,17.09,0.0053504]
[1673641329587,20.0,17.105,17.09,0.0053504]
[1673641330001,43.85,17.104,17.09,0.0053504]
[1673641330308,20.0,17.103,17.09,0.0053504]
[1673641330519,66.9691928,17.103,17.09,0.0053504]